[Event "Torneo Nuevo Centro. Jornada 10"]
[Site "Chess.com"]
[Date "2020.08.21"]
[Round "1"]
[White "Marques Montolio, Luis"]
[Black "Aymerich Rosell, Pablo"]
[Result "0-1"]
[WhiteElo "1428"]
[BlackElo "1966"]
[TimeControl "180+2"]
[EndTime "10:36:16 PDT"]
[Termination "Victoria de jasikevic por abandono"]

1. e4 {[%clk 0:02:53.1]} 1... c6 {[%clk 0:02:57.3]} 2. Nf3 {[%clk 0:02:53.1]}
2... d5 {[%clk 0:02:58]} 3. Nc3 {[%clk 0:02:51]} 3... Nf6 {[%clk 0:02:54.9]} 4.
exd5 {[%clk 0:02:51]} 4... cxd5 {[%clk 0:02:54.9]} 5. d4 {[%clk 0:02:51.8]} 5...
Nc6 {[%clk 0:02:55.6]} 6. Bd3 {[%clk 0:02:52.2]} 6... Bg4 {[%clk 0:02:55.7]} 7.
Bg5 {[%clk 0:02:48.3]} 7... Nxd4 {[%clk 0:02:41.4]} 8. Bxf6 {[%clk 0:02:43.6]}
8... gxf6 {[%clk 0:02:33]} 9. h3 {[%clk 0:02:43.7]} 9... Bxf3 {[%clk 0:02:32.9]}
10. gxf3 {[%clk 0:02:44.5]} 10... e6 {[%clk 0:02:24.3]} 11. f4 {[%clk
0:02:38.7]} 11... f5 {[%clk 0:02:22.9]} 12. Qh5 {[%clk 0:02:37.6]} 12... Qf6
{[%clk 0:02:14]} 13. O-O-O {[%clk 0:02:37]} 13... a6 {[%clk 0:02:03.9]} 14. Ne2
{[%clk 0:02:16.1]} 14... Nc6 {[%clk 0:01:53.7]} 15. Qf3 {[%clk 0:02:04.6]} 15...
Bg7 {[%clk 0:01:52.8]} 16. c3 {[%clk 0:02:03.1]} 16... O-O {[%clk 0:01:43.9]}
17. h4 {[%clk 0:02:01.4]} 17... Kh8 {[%clk 0:01:43.5]} 18. h5 {[%clk 0:02:01.4]}
18... h6 {[%clk 0:01:40.7]} 19. Rhg1 {[%clk 0:01:55.6]} 19... b5 {[%clk
0:01:39.3]} 20. Rg2 {[%clk 0:01:55.9]} 20... b4 {[%clk 0:01:39.7]} 21. Rdg1
{[%clk 0:01:55.5]} 21... Rg8 {[%clk 0:01:40.5]} 22. Bb1 {[%clk 0:01:42.6]} 22...
bxc3 {[%clk 0:01:39.4]} 23. Nxc3 {[%clk 0:01:42.2]} 23... Rac8 {[%clk
0:01:31.2]} 24. Bc2 {[%clk 0:01:26.4]} 24... Nd4 {[%clk 0:01:29.6]} 25. Qd3
{[%clk 0:01:18.6]} 25... Nxc2 {[%clk 0:01:28.5]} 26. Qxc2 {[%clk 0:01:16.7]}
26... d4 {[%clk 0:01:29.1]} 27. Rxg7 {[%clk 0:00:59.8]} 27... Rxg7 {[%clk
0:01:27.1]} 28. Rxg7 {[%clk 0:01:00.2]} 28... Qxg7 {[%clk 0:01:26.4]} 29. Ne2
{[%clk 0:01:00.1]} 29... Rxc2+ {[%clk 0:01:24.5]} 30. Kxc2 {[%clk 0:01:02]} 0

[Event "Torneo Nuevo Centro. Jornada 10"]
[Site "Chess.com"]
[Date "2020.08.21"]
[Round "1"]
[White "Blanco Solaz, Ramón"]
[Black "Yatseta Fernandez, Marc Kazymyr"]
[Result "1-0"]
[WhiteElo "2002"]
[BlackElo "1443"]
[TimeControl "180+2"]
[EndTime "10:36:19 PDT"]
[Termination "Victoria de Rbs77 por abandono"]

1. e4 {[%clk 0:03:01.9]} 1... e5 {[%clk 0:03:00]} 2. Nf3 {[%clk 0:03:02.2]} 2...
Nc6 {[%clk 0:03:01]} 3. Bc4 {[%clk 0:03:03.1]} 3... Be7 {[%clk 0:02:53]} 4. O-O
{[%clk 0:03:01.2]} 4... Nf6 {[%clk 0:02:49.7]} 5. Re1 {[%clk 0:02:59.1]} 5... d6
{[%clk 0:02:50.6]} 6. h3 {[%clk 0:02:59.5]} 6... Be6 {[%clk 0:02:50.2]} 7. d3
{[%clk 0:02:55.8]} 7... O-O {[%clk 0:02:41.3]} 8. Nbd2 {[%clk 0:02:53.1]} 8...
Qd7 {[%clk 0:02:35.7]} 9. a3 {[%clk 0:02:50.2]} 9... Na5 {[%clk 0:02:24.9]} 10.
Bxe6 {[%clk 0:02:48.1]} 10... fxe6 {[%clk 0:02:26.8]} 11. b4 {[%clk 0:02:47.2]}
11... Nc6 {[%clk 0:02:26.4]} 12. c4 {[%clk 0:02:48.1]} 12... Nd4 {[%clk
0:02:06.6]} 13. Nxd4 {[%clk 0:02:48.5]} 13... exd4 {[%clk 0:02:08]} 14. Nf3
{[%clk 0:02:49.2]} 14... e5 {[%clk 0:02:02.8]} 15. Qc2 {[%clk 0:02:43.8]} 15...
c6 {[%clk 0:02:03.3]} 16. c5 {[%clk 0:02:43.5]} 16... dxc5 {[%clk 0:01:55.2]}
17. bxc5 {[%clk 0:02:36.1]} 17... Qe6 {[%clk 0:01:50.7]} 18. Ng5 {[%clk
0:02:36]} 18... Qd7 {[%clk 0:01:37.9]} 19. Qc4+ {[%clk 0:02:36.8]} 19... Kh8
{[%clk 0:01:34.8]} 20. Nf7+ {[%clk 0:02:38.1]} 20... Rxf7 {[%clk 0:01:36]} 21.
Qxf7 {[%clk 0:02:40]} 21... Rf8 {[%clk 0:01:33.8]} 22. Qb3 {[%clk 0:02:41.5]}
22... Nh5 {[%clk 0:01:29.2]} 23. Rb1 {[%clk 0:02:38.4]} 23... Bh4 {[%clk
0:01:18.1]} 24. Re2 {[%clk 0:02:35.8]} 24... Nf4 {[%clk 0:01:06.2]} 25. Bxf4
{[%clk 0:02:35]} 25... exf4 {[%clk 0:00:59.4]} 26. Qxb7 {[%clk 0:02:36.5]} 26...
Qe6 {[%clk 0:00:55.2]} 27. f3 {[%clk 0:02:26.4]} 27... Bg3 {[%clk 0:00:40.2]}
28. Qc7 {[%clk 0:02:22.4]} 28... g5 {[%clk 0:00:31.3]} 29. Rb7 {[%clk
0:02:22.7]} 29... Qg6 {[%clk 0:00:24.8]} 30. Qe7 {[%clk 0:02:19.4]} 30... Rg8
{[%clk 0:00:21.8]} 31. e5 {[%clk 0:02:18.2]} 31... h5 {[%clk 0:00:18.5]} 32.
Qf6+ {[%clk 0:02:17.8]} 1

[Event "Torneo Nuevo Centro. Jornada 10"]
[Site "Chess.com"]
[Date "2020.08.21"]
[Round "1"]
[White "Gimenez Saiz, Jose Raul"]
[Black "Polikarpov, Anton"]
[Result "1-0"]
[WhiteElo "1900"]
[BlackElo "1213"]
[TimeControl "180+2"]
[EndTime "10:36:27 PDT"]
[Termination "Victoria de rango013 por abandono"]

1. d4 {[%clk 0:03:00]} 1... d5 {[%clk 0:02:59.8]} 2. e3 {[%clk 0:03:01]} 2...
Nc6 {[%clk 0:02:59.4]} 3. f4 {[%clk 0:03:01.4]} 3... Bf5 {[%clk 0:02:58.7]} 4.
c3 {[%clk 0:02:56.9]} 4... g6 {[%clk 0:02:56.4]} 5. h3 {[%clk 0:02:56.8]} 5...
Bg7 {[%clk 0:02:56]} 6. Nf3 {[%clk 0:02:56.7]} 6... Nf6 {[%clk 0:02:56.3]} 7.
Nbd2 {[%clk 0:02:56.2]} 7... Ne4 {[%clk 0:02:56.2]} 8. Bd3 {[%clk 0:02:54.1]}
8... Ng3 {[%clk 0:02:53.7]} 9. Bxf5 {[%clk 0:02:50.3]} 9... Nxh1 {[%clk
0:02:48.9]} 10. Bd3 {[%clk 0:02:46.3]} 10... Ng3 {[%clk 0:02:48.6]} 11. Kf2
{[%clk 0:02:43]} 11... Nh5 {[%clk 0:02:46.6]} 12. Ne5 {[%clk 0:02:39.5]} 12...
Bxe5 {[%clk 0:02:46.6]} 13. fxe5 {[%clk 0:02:40.3]} 13... e6 {[%clk 0:02:45.6]}
14. Nf3 {[%clk 0:02:39.9]} 14... Qe7 {[%clk 0:02:37.5]} 15. e4 {[%clk
0:02:36.5]} 15... O-O-O {[%clk 0:02:35.3]} 16. g4 {[%clk 0:02:31.5]} 16... dxe4
{[%clk 0:02:30.1]} 17. Bxe4 {[%clk 0:02:31.9]} 17... Ng7 {[%clk 0:02:27.5]} 18.
Bg5 {[%clk 0:02:31.6]} 18... f6 {[%clk 0:02:23.1]} 19. Bxf6 {[%clk 0:02:31.2]}
19... Qf7 {[%clk 0:02:19.3]} 20. Bxd8 {[%clk 0:02:22.2]} 20... Nxd8 {[%clk
0:02:15.5]} 21. Qb3 {[%clk 0:02:16.6]} 21... Nc6 {[%clk 0:02:11.7]} 22. Qa4
{[%clk 0:02:10.4]} 22... Qd7 {[%clk 0:02:06.7]} 23. Bxc6 {[%clk 0:02:02.6]}
23... bxc6 {[%clk 0:02:02.1]} 24. Qxa7 {[%clk 0:01:55.3]} 24... Kd8 {[%clk
0:02:01.5]} 25. Qa8+ {[%clk 0:01:48.5]} 25... Qc8 {[%clk 0:01:57.3]} 26. Qxc6
{[%clk 0:01:46.2]} 26... Rf8 {[%clk 0:01:53.6]} 27. Ke3 {[%clk 0:01:43.7]} 27...
h5 {[%clk 0:01:48]} 28. a4 {[%clk 0:01:31.1]} 28... hxg4 {[%clk 0:01:48.1]} 29.
hxg4 {[%clk 0:01:31.9]} 29... Qb8 {[%clk 0:01:36.2]} 30. b4 {[%clk 0:01:18.6]}
30... Qa7 {[%clk 0:01:25.3]} 31. Qc5 {[%clk 0:01:13.6]} 31... Qb7 {[%clk
0:01:23.9]} 32. Qxf8+ {[%clk 0:01:12.8]} 32... Kd7 {[%clk 0:01:21.3]} 33. Qxg7+
{[%clk 0:01:12.7]} 33... Kc6 {[%clk 0:01:21.5]} 1

[Event "Torneo Nuevo Centro. Jornada 10"]
[Site "Chess.com"]
[Date "2020.08.21"]
[Round "1"]
[White "Soliva Ruiz, Ramon"]
[Black "Perez Garcia, Jose Miguel"]
[Result "0-1"]
[WhiteElo "1506"]
[BlackElo "2075"]
[TimeControl "180+2"]
[EndTime "10:36:51 PDT"]
[Termination "Victoria de PEREZOV69 por tiempo"]

1. d4 {[%clk 0:03:01.1]} 1... g6 {[%clk 0:03:00.8]} 2. c3 {[%clk 0:03:00.7]}
2... Bg7 {[%clk 0:03:02]} 3. Nf3 {[%clk 0:03:00.5]} 3... Nf6 {[%clk 0:03:03.4]}
4. Bf4 {[%clk 0:02:58.4]} 4... O-O {[%clk 0:03:05.3]} 5. e3 {[%clk 0:02:59]}
5... d6 {[%clk 0:03:06.6]} 6. h3 {[%clk 0:02:59.6]} 6... Nbd7 {[%clk 0:03:07.4]}
7. Nbd2 {[%clk 0:02:59.4]} 7... c6 {[%clk 0:03:08.8]} 8. Bc4 {[%clk 0:02:59.2]}
8... Qe8 {[%clk 0:03:10.7]} 9. O-O {[%clk 0:02:54.9]} 9... e5 {[%clk 0:03:11.8]}
10. dxe5 {[%clk 0:02:55.1]} 10... dxe5 {[%clk 0:03:13.7]} 11. Bg3 {[%clk
0:02:44.5]} 11... Qe7 {[%clk 0:03:12.7]} 12. Bh4 {[%clk 0:02:35.2]} 12... h6
{[%clk 0:03:11.3]} 13. Ne4 {[%clk 0:02:30.7]} 13... g5 {[%clk 0:03:11.2]} 14.
Nxf6+ {[%clk 0:02:30.6]} 14... Nxf6 {[%clk 0:03:11.7]} 15. Bg3 {[%clk
0:02:27.5]} 15... Nh5 {[%clk 0:03:12.3]} 16. Bh2 {[%clk 0:02:24]} 16... e4
{[%clk 0:03:06.8]} 17. Nd4 {[%clk 0:02:17.5]} 17... Nf6 {[%clk 0:03:03.6]} 18.
Qb3 {[%clk 0:01:51.2]} 18... a5 {[%clk 0:02:45.7]} 19. a4 {[%clk 0:01:47.6]}
19... h5 {[%clk 0:02:38.2]} 20. Rad1 {[%clk 0:01:47.3]} 20... g4 {[%clk
0:02:37.3]} 21. h4 {[%clk 0:01:43.6]} 21... Nh7 {[%clk 0:02:37.6]} 22. Bg3
{[%clk 0:01:42.6]} 22... Bf6 {[%clk 0:02:37.9]} 23. Ne2 {[%clk 0:01:32.1]} 23...
Bxh4 {[%clk 0:02:37.3]} 24. Bd6 {[%clk 0:01:32.4]} 24... Qg5 {[%clk 0:02:31.7]}
25. Bxf8 {[%clk 0:01:32.5]} 25... Nxf8 {[%clk 0:02:33.6]} 26. Bxf7+ {[%clk
0:01:32.7]} 26... Kg7 {[%clk 0:02:34.8]} 27. Nf4 {[%clk 0:01:28.7]} 27... g3
{[%clk 0:02:25.2]} 28. Nxh5+ {[%clk 0:01:24.4]} 28... Kh6 {[%clk 0:02:21.4]} 29.
fxg3 {[%clk 0:01:15.3]} 29... Bxg3 {[%clk 0:02:20.8]} 30. Rf6+ {[%clk
0:01:14.7]} 30... Kh7 {[%clk 0:02:20.7]} 31. Re1 {[%clk 0:00:19]} 31... Bxe1
{[%clk 0:02:19.4]} 32. Qc4 {[%clk 0:00:09.6]} 32... Qxe3+ {[%clk 0:02:18.2]} 33.
Kh2 {[%clk 0:00:08]} 33... Bg4 {[%clk 0:02:16]} 34. Qxe4+ {[%clk 0:00:06.8]}
34... Qxe4 {[%clk 0:02:16.4]} 35. Bg6+ {[%clk 0:00:07.2]} 35... Qxg6 {[%clk
0:02:16.6]} 36. Rxg6 {[%clk 0:00:08.2]} 36... Kxg6 {[%clk 0:02:18.5]} 37. Ng7
{[%clk 0:00:08.8]} 37... Kxg7 {[%clk 0:02:19.5]} 0

[Event "Torneo Nuevo Centro. Jornada 10"]
[Site "Chess.com"]
[Date "2020.08.21"]
[Round "1"]
[White "Morello Ostos, Domingo"]
[Black "Nadal Fajardo, Ricard"]
[Result "0-1"]
[WhiteElo "1658"]
[BlackElo "2222"]
[TimeControl "180+2"]
[EndTime "10:37:03 PDT"]
[Termination "Victoria de gomokuniano por abandono"]

1. e4 {[%clk 0:02:59.8]} 1... c6 {[%clk 0:03:01.8]} 2. d4 {[%clk 0:03:00]} 2...
d5 {[%clk 0:03:03.6]} 3. Nc3 {[%clk 0:03:01.2]} 3... dxe4 {[%clk 0:03:04.5]} 4.
Nxe4 {[%clk 0:03:03.1]} 4... Bf5 {[%clk 0:03:06.2]} 5. Ng3 {[%clk 0:03:04.4]}
5... Bg6 {[%clk 0:03:07.6]} 6. h4 {[%clk 0:03:05.9]} 6... h6 {[%clk 0:03:08.5]}
7. Nf3 {[%clk 0:03:04.6]} 7... Nd7 {[%clk 0:03:09.4]} 8. h5 {[%clk 0:03:02.9]}
8... Bh7 {[%clk 0:03:10]} 9. Bd3 {[%clk 0:03:04.4]} 9... Bxd3 {[%clk 0:03:11.5]}
10. Qxd3 {[%clk 0:03:06.3]} 10... e6 {[%clk 0:03:13.4]} 11. Bd2 {[%clk 0:03:06]}
11... Ngf6 {[%clk 0:03:13.7]} 12. O-O-O {[%clk 0:03:07.2]} 12... Be7 {[%clk
0:03:15.3]} 13. Ne4 {[%clk 0:03:02.3]} 13... Nxe4 {[%clk 0:03:16.1]} 14. Qxe4
{[%clk 0:03:03.3]} 14... Nf6 {[%clk 0:03:18]} 15. Qe2 {[%clk 0:03:01.3]} 15...
Qd5 {[%clk 0:03:19.2]} 16. Ne5 {[%clk 0:02:51.7]} 16... Qxa2 {[%clk 0:03:18.5]}
17. c3 {[%clk 0:02:42.8]} 17... a5 {[%clk 0:03:07.2]} 18. Rhe1 {[%clk
0:02:37.3]} 18... a4 {[%clk 0:03:04.7]} 19. Qc4 {[%clk 0:02:23.6]} 19... Qxc4
{[%clk 0:02:54.3]} 20. Nxc4 {[%clk 0:02:25.5]} 20... Nd5 {[%clk 0:02:47.1]} 21.
f4 {[%clk 0:02:21.8]} 21... O-O {[%clk 0:02:10.3]} 22. g4 {[%clk 0:02:08.2]}
22... a3 {[%clk 0:02:02.6]} 23. bxa3 {[%clk 0:02:02]} 23... Bxa3+ {[%clk
0:02:04.4]} 24. Nxa3 {[%clk 0:02:01.8]} 24... Rxa3 {[%clk 0:02:06.2]} 25. Kb2
{[%clk 0:02:00.5]} 25... Rfa8 {[%clk 0:02:04.7]} 26. Ra1 {[%clk 0:01:53.2]}
26... Rxa1 {[%clk 0:02:02.4]} 27. Rxa1 {[%clk 0:01:53.6]} 27... Rxa1 {[%clk
0:02:04.3]} 28. Kxa1 {[%clk 0:01:55.5]} 28... Nb6 {[%clk 0:01:48.7]} 29. Ka2
{[%clk 0:01:52.4]} 29... Nc4 {[%clk 0:01:49.1]} 30. Bc1 {[%clk 0:01:53]} 30...
Kf8 {[%clk 0:01:42.3]} 31. Kb3 {[%clk 0:01:50.5]} 31... b5 {[%clk 0:01:37.9]}
32. Kb4 {[%clk 0:01:47.2]} 32... Ke8 {[%clk 0:01:38.6]} 33. Kc5 {[%clk
0:01:46.6]} 33... Kd7 {[%clk 0:01:39.6]} 34. g5 {[%clk 0:01:46]} 34... Nd6
{[%clk 0:01:38.2]} 35. Kb6 {[%clk 0:01:41]} 35... Nf5 {[%clk 0:01:21.2]} 36. Ba3
{[%clk 0:01:32.9]} 36... Ng3 {[%clk 0:01:20.1]} 37. Bf8 {[%clk 0:01:28.2]} 37...
Nxh5 {[%clk 0:01:18.2]} 38. gxh6 {[%clk 0:01:27.4]} 38... gxh6 {[%clk
0:01:19.2]} 39. Bxh6 {[%clk 0:01:28.9]} 39... Nf6 {[%clk 0:01:16.1]} 0

[Event "Torneo Nuevo Centro. Jornada 10"]
[Site "Chess.com"]
[Date "2020.08.21"]
[Round "1"]
[White "Donate Peris, Jose Manuel"]
[Black "Chernikov, Vladimir"]
[Result "0-1"]
[WhiteElo "1536"]
[BlackElo "2211"]
[TimeControl "180+2"]
[EndTime "10:37:06 PDT"]
[Termination "Victoria de isla88 por abandono"]

1. d4 {[%clk 0:03:00.3]} 1... g6 {[%clk 0:02:58.8]} 2. e4 {[%clk 0:02:59.4]}
2... Bg7 {[%clk 0:02:58.4]} 3. c3 {[%clk 0:02:56.6]} 3... d6 {[%clk 0:02:59.4]}
4. Bc4 {[%clk 0:02:53.6]} 4... c6 {[%clk 0:02:52.7]} 5. Nf3 {[%clk 0:02:51.1]}
5... d5 {[%clk 0:02:53.7]} 6. exd5 {[%clk 0:02:50.1]} 6... cxd5 {[%clk
0:02:55.6]} 7. Bb3 {[%clk 0:02:44.6]} 7... Bg4 {[%clk 0:02:54.4]} 8. h3 {[%clk
0:02:43.7]} 8... Bxf3 {[%clk 0:02:54.1]} 9. Qxf3 {[%clk 0:02:44]} 9... Nf6
{[%clk 0:02:55.7]} 10. Bg5 {[%clk 0:02:39.9]} 10... Ne4 {[%clk 0:02:56.5]} 11.
Bh4 {[%clk 0:02:30.9]} 11... O-O {[%clk 0:02:47.2]} 12. O-O {[%clk 0:02:31.2]}
12... Nc6 {[%clk 0:02:47.1]} 13. Re1 {[%clk 0:02:24.6]} 13... g5 {[%clk
0:02:23.5]} 14. Bg3 {[%clk 0:02:22.6]} 14... Nxg3 {[%clk 0:02:23.3]} 15. Qxg3
{[%clk 0:02:18.3]} 15... e6 {[%clk 0:02:24.5]} 16. Nd2 {[%clk 0:02:16.1]} 16...
h6 {[%clk 0:02:20.4]} 17. Nf3 {[%clk 0:02:15.7]} 17... Rc8 {[%clk 0:02:10.8]}
18. Ne5 {[%clk 0:02:14.2]} 18... Nxe5 {[%clk 0:02:10.9]} 19. dxe5 {[%clk
0:02:13.2]} 19... Qc7 {[%clk 0:02:10.2]} 20. Bc2 {[%clk 0:02:07.8]} 20... Qc4
{[%clk 0:02:04.6]} 21. Qd3 {[%clk 0:02:02.8]} 21... Qxd3 {[%clk 0:02:04.5]} 22.
Bxd3 {[%clk 0:02:03.5]} 22... Rfd8 {[%clk 0:01:58]} 23. Rad1 {[%clk 0:01:59.1]}
23... Kf8 {[%clk 0:01:51.9]} 24. g4 {[%clk 0:01:50.6]} 24... d4 {[%clk
0:01:47.4]} 25. cxd4 {[%clk 0:01:47.5]} 25... Rxd4 {[%clk 0:01:49.3]} 26. Bb1
{[%clk 0:01:47.2]} 26... Rcd8 {[%clk 0:01:47.7]} 27. Rxd4 {[%clk 0:01:46.4]}
27... Rxd4 {[%clk 0:01:49.6]} 28. Kg2 {[%clk 0:01:44.7]} 28... Rd5 {[%clk
0:01:35.5]} 29. Kg3 {[%clk 0:01:38.7]} 29... Bxe5+ {[%clk 0:01:33.5]} 30. Kg2
{[%clk 0:01:33.9]} 30... Bxb2 {[%clk 0:01:30.9]} 31. h4 {[%clk 0:01:28.6]} 31...
Rd2 {[%clk 0:01:28.1]} 32. hxg5 {[%clk 0:01:26.6]} 32... hxg5 {[%clk 0:01:30]}
33. Kf3 {[%clk 0:01:16.1]} 33... Bd4 {[%clk 0:01:26.9]} 34. Re2 {[%clk
0:01:15.5]} 34... Rd1 {[%clk 0:01:20.3]} 35. Ke4 {[%clk 0:01:13.1]} 35... Bb6
{[%clk 0:01:16.4]} 36. f3 {[%clk 0:01:11.4]} 36... Rd4+ {[%clk 0:01:16.6]} 37.
Ke5 {[%clk 0:01:09.3]} 37... Ke7 {[%clk 0:01:16.4]} 0

[Event "Torneo Nuevo Centro. Jornada 10"]
[Site "Chess.com"]
[Date "2020.08.21"]
[Round "1"]
[White "Pedros Viudes, Santiago"]
[Black "Miranda Calvo, Max Rodrigo"]
[Result "1-0"]
[WhiteElo "1922"]
[BlackElo "1353"]
[TimeControl "180+2"]
[EndTime "10:37:06 PDT"]
[Termination "Victoria de ElGatoKamsky por jaque mate"]

1. d4 {[%clk 0:03:01.8]} 1... d5 {[%clk 0:02:56.1]} 2. Nf3 {[%clk 0:03:02.8]}
2... Nc6 {[%clk 0:02:54.7]} 3. Bf4 {[%clk 0:03:03.8]} 3... Bf5 {[%clk
0:02:53.6]} 4. e3 {[%clk 0:02:56.2]} 4... a6 {[%clk 0:02:53.7]} 5. c4 {[%clk
0:02:57.2]} 5... e6 {[%clk 0:02:50.4]} 6. c5 {[%clk 0:02:54.3]} 6... Nf6 {[%clk
0:02:47.3]} 7. Qa4 {[%clk 0:02:53.7]} 7... Be7 {[%clk 0:02:44.9]} 8. Ne5 {[%clk
0:02:52.3]} 8... O-O {[%clk 0:02:24]} 9. Nxc6 {[%clk 0:02:52.4]} 9... bxc6
{[%clk 0:02:25.9]} 10. Qxc6 {[%clk 0:02:52.9]} 10... Qb8 {[%clk 0:02:21.6]} 11.
b3 {[%clk 0:02:20.6]} 11... Qb4+ {[%clk 0:02:17.8]} 12. Ke2 {[%clk 0:02:01.5]}
12... Rfc8 {[%clk 0:01:51.3]} 13. f3 {[%clk 0:01:58.4]} 13... Bxb1 {[%clk
0:01:44.3]} 14. Rxb1 {[%clk 0:01:58.6]} 14... Qc3 {[%clk 0:01:44.3]} 15. Rd1
{[%clk 0:01:56.8]} 15... h6 {[%clk 0:01:38.3]} 16. Be5 {[%clk 0:01:16.3]} 16...
Qa5 {[%clk 0:01:17.7]} 17. Kf2 {[%clk 0:01:11.7]} 17... Qxa2+ {[%clk 0:01:17.1]}
18. Be2 {[%clk 0:01:12.6]} 18... Qxb3 {[%clk 0:01:16.5]} 19. Rb1 {[%clk
0:01:08.8]} 19... Qa3 {[%clk 0:01:10.6]} 20. Ra1 {[%clk 0:01:09]} 20... Qb4
{[%clk 0:01:05.9]} 21. Rhb1 {[%clk 0:01:03.3]} 21... Qd2 {[%clk 0:00:58.6]} 22.
Rxa6 {[%clk 0:01:02.6]} 22... Rxa6 {[%clk 0:00:58.4]} 23. Qxa6 {[%clk
0:01:04.5]} 23... Nd7 {[%clk 0:00:57.4]} 24. Qxc8+ {[%clk 0:01:04.1]} 24... Kh7
{[%clk 0:00:59.3]} 25. Qxd7 {[%clk 0:01:04.3]} 25... f6 {[%clk 0:01:01.2]} 26.
Qxe7 {[%clk 0:01:04.6]} 26... fxe5 {[%clk 0:01:03.1]} 27. dxe5 {[%clk
0:01:01.4]} 27... d4 {[%clk 0:01:04.7]} 28. exd4 {[%clk 0:01:00.6]} 28... Qxd4+
{[%clk 0:01:05.5]} 29. Kf1 {[%clk 0:01:02.1]} 29... Qxe5 {[%clk 0:01:03.8]} 30.
c6 {[%clk 0:00:54.2]} 30... Qf5 {[%clk 0:01:01.5]} 31. Rd1 {[%clk 0:00:52.8]}
31... Kg6 {[%clk 0:00:59.7]} 32. Qxc7 {[%clk 0:00:52.8]} 32... Kf6 {[%clk
0:00:59.1]} 33. Qd8+ {[%clk 0:00:51.6]} 33... Ke5 {[%clk 0:00:58.6]} 34. Qd4#
{[%clk 0:00:50.5]} 1

[Event "Torneo Nuevo Centro. Jornada 10"]
[Site "Chess.com"]
[Date "2020.08.21"]
[Round "1"]
[White "Gil López, Alejandro"]
[Black "Cebolla Ruiz, David"]
[Result "1-0"]
[WhiteElo "2211"]
[BlackElo "1561"]
[TimeControl "180+2"]
[EndTime "10:37:11 PDT"]
[Termination "Victoria de AglVal0313 por tiempo"]

1. e4 {[%clk 0:03:01.7]} 1... e5 {[%clk 0:02:48.8]} 2. Nf3 {[%clk 0:03:02.7]}
2... d6 {[%clk 0:02:46.9]} 3. Bc4 {[%clk 0:03:03.4]} 3... Be7 {[%clk 0:02:45.6]}
4. h3 {[%clk 0:03:04]} 4... Nf6 {[%clk 0:02:44.8]} 5. Nc3 {[%clk 0:03:02.8]}
5... O-O {[%clk 0:02:43.6]} 6. O-O {[%clk 0:03:02]} 6... Nbd7 {[%clk 0:02:35]}
7. d4 {[%clk 0:02:56]} 7... b6 {[%clk 0:02:30.3]} 8. dxe5 {[%clk 0:02:50]} 8...
Nxe5 {[%clk 0:02:30.7]} 9. Nxe5 {[%clk 0:02:42.2]} 9... dxe5 {[%clk 0:02:30.9]}
10. Bg5 {[%clk 0:02:41.7]} 10... Bb7 {[%clk 0:02:30.4]} 11. f3 {[%clk
0:02:36.9]} 11... Qd4+ {[%clk 0:02:17]} 12. Qxd4 {[%clk 0:02:33.4]} 12... exd4
{[%clk 0:02:14.6]} 13. Ne2 {[%clk 0:02:35.3]} 13... Rad8 {[%clk 0:02:10.1]} 14.
Rad1 {[%clk 0:02:34.6]} 14... c5 {[%clk 0:02:07.2]} 15. Ng3 {[%clk 0:02:34.2]}
15... h6 {[%clk 0:02:06.3]} 16. Bf4 {[%clk 0:02:32.2]} 16... Rfe8 {[%clk
0:01:50.9]} 17. Nf5 {[%clk 0:02:31.3]} 17... Nh5 {[%clk 0:01:40.7]} 18. Bh2
{[%clk 0:02:24.1]} 18... Bg5 {[%clk 0:01:05.2]} 19. f4 {[%clk 0:02:20.5]} 19...
Be7 {[%clk 0:00:44.9]} 20. e5 {[%clk 0:02:21.7]} 20... Be4 {[%clk 0:00:20.6]}
21. Bd3 {[%clk 0:02:07.6]} 21... Bxf5 {[%clk 0:00:18.1]} 22. Bxf5 {[%clk
0:02:05.3]} 22... g6 {[%clk 0:00:18.2]} 23. Bd3 {[%clk 0:02:02.6]} 23... Ng7
{[%clk 0:00:17]} 24. g4 {[%clk 0:01:53.1]} 24... h5 {[%clk 0:00:15]} 25. f5
{[%clk 0:01:51.2]} 25... hxg4 {[%clk 0:00:13.3]} 26. hxg4 {[%clk 0:01:50.4]}
26... gxf5 {[%clk 0:00:13.4]} 27. gxf5 {[%clk 0:01:52.3]} 27... Bh4 {[%clk
0:00:12.1]} 28. f6 {[%clk 0:01:49.9]} 28... Ne6 {[%clk 0:00:10.1]} 29. Bf5
{[%clk 0:01:43.4]} 29... Nc7 {[%clk 0:00:10]} 30. Rf4 {[%clk 0:01:40.3]} 30...
Bg5 {[%clk 0:00:02.8]} 31. Rg4 {[%clk 0:01:40.8]} 31... Rxe5 {[%clk 0:00:03.1]}
32. Rxg5+ {[%clk 0:01:41.7]} 32... Kf8 {[%clk 0:00:03.5]} 33. Bxe5 {[%clk
0:01:43.6]} 1

[Event "Torneo Nuevo Centro. Jornada 10"]
[Site "Chess.com"]
[Date "2020.08.21"]
[Round "1"]
[White "Garcia, Jhoel"]
[Black "Rodriguez Rodriguez, Joan David "]
[Result "1-0"]
[WhiteElo "2421"]
[BlackElo "1723"]
[TimeControl "180+2"]
[EndTime "10:37:16 PDT"]
[Termination "Victoria de shoels por abandono"]

1. g3 {[%clk 0:02:57.7]} 1... Nf6 {[%clk 0:02:59.4]} 2. Bg2 {[%clk 0:02:58.6]}
2... c6 {[%clk 0:03:00.2]} 3. b3 {[%clk 0:02:57.6]} 3... d5 {[%clk 0:02:59.4]}
4. Bb2 {[%clk 0:02:59.1]} 4... Bf5 {[%clk 0:02:59.1]} 5. d3 {[%clk 0:02:59.6]}
5... Nbd7 {[%clk 0:02:55.2]} 6. Nd2 {[%clk 0:03:00.9]} 6... e6 {[%clk
0:02:56.3]} 7. e4 {[%clk 0:02:58.9]} 7... dxe4 {[%clk 0:02:23]} 8. dxe4 {[%clk
0:02:58.1]} 8... Bg6 {[%clk 0:02:22.2]} 9. Qe2 {[%clk 0:02:59.3]} 9... Be7
{[%clk 0:02:04.9]} 10. O-O-O {[%clk 0:02:58.6]} 10... O-O {[%clk 0:02:01.7]} 11.
f4 {[%clk 0:02:59.6]} 11... h6 {[%clk 0:02:00.7]} 12. g4 {[%clk 0:03:00]} 12...
a5 {[%clk 0:02:00.1]} 13. f5 {[%clk 0:02:59.5]} 13... exf5 {[%clk 0:02:00]} 14.
exf5 {[%clk 0:02:58.3]} 14... Bh7 {[%clk 0:02:01.5]} 15. Nc4 {[%clk 0:02:54.7]}
15... Re8 {[%clk 0:01:42]} 16. Qd3 {[%clk 0:02:47.2]} 16... Nc5 {[%clk
0:01:36.7]} 17. Qe3 {[%clk 0:02:41.7]} 17... Ncd7 {[%clk 0:01:34.3]} 18. Qf4
{[%clk 0:02:29.7]} 18... Nd5 {[%clk 0:01:24.6]} 19. Qg3 {[%clk 0:02:30.4]} 19...
Bg5+ {[%clk 0:01:23.3]} 20. Kb1 {[%clk 0:02:30.9]} 20... Nf4 {[%clk 0:01:21.9]}
21. h4 {[%clk 0:02:27.7]} 21... Nxg2 {[%clk 0:01:19.5]} 22. hxg5 {[%clk
0:02:28.4]} 22... b5 {[%clk 0:01:06.6]} 23. Ne5 {[%clk 0:02:19.3]} 23... Rxe5
{[%clk 0:00:10.5]} 24. Bxe5 {[%clk 0:02:15.9]} 24... Qe7 {[%clk 0:00:11.6]} 25.
Bd6 {[%clk 0:02:03.6]} 25... Qe4 {[%clk 0:00:10.2]} 26. Qf3 {[%clk 0:01:50]}
26... Qxf3 {[%clk 0:00:02.9]} 27. Nxf3 {[%clk 0:01:51.3]} 27... Ne3 {[%clk
0:00:04.8]} 28. Rdg1 {[%clk 0:01:52]} 28... hxg5 {[%clk 0:00:05.4]} 29. Nxg5
{[%clk 0:01:52.4]} 29... Nf6 {[%clk 0:00:05.1]} 30. Nxh7 {[%clk 0:01:44.1]}
30... Nxh7 {[%clk 0:00:05.5]} 31. Bf4 {[%clk 0:01:45.7]} 31... Nd5 {[%clk
0:00:04.4]} 32. Bd2 {[%clk 0:01:45.9]} 32... Nhf6 {[%clk 0:00:05.4]} 33. g5
{[%clk 0:01:43.2]} 33... Ne4 {[%clk 0:00:06.6]} 34. Kc1 {[%clk 0:01:43.6]} 34...
Kf8 {[%clk 0:00:07.1]} 35. Rh8+ {[%clk 0:01:43.9]} 35... Ke7 {[%clk 0:00:08.2]}
36. Rxa8 {[%clk 0:01:45.8]} 36... Nxd2 {[%clk 0:00:09.6]} 37. Ra7+ {[%clk
0:01:47.1]} 37... Kd6 {[%clk 0:00:10.2]} 38. Kxd2 {[%clk 0:01:49]} 1